[Event "Titled Tuesday Blitz April 26 Late 2022"]
[White "Veiga, Emerson de Sousa"]
[Black "Lopez Del Alamo, Antonio"]
[WhiteFideId "2151898"]
[BlackFideId "2227339"]
[WhiteElo "2034"]
[BlackElo "2082"]
[Result "1-0"]
[Round "04"]
[TimeControl "180+1"]
[Date "2022.04.26"]
[WhiteClock "0:02:07"]
[BlackClock "0:02:15"]

1. e4 {[%clk 0:02:57]}  c5 {[%clk 0:02:59]} 2. Nf3 {[%clk 0:02:57]}  e6 {[%clk 0:02:58]} 3. d4 {[%clk 0:02:57]}  cxd4 {[%clk 0:02:58]} 4. Nxd4 {[%clk 0:02:58]}  Nf6 {[%clk 0:02:57]} 5. Bd3 {[%clk 0:02:53]}  Nc6 {[%clk 0:02:57]} 6. c3 {[%clk 0:02:52]}  d5 {[%clk 0:02:54]} 7. Nxc6 {[%clk 0:02:51]}  bxc6 {[%clk 0:02:54]} 8. e5 {[%clk 0:02:51]}  Nd7 {[%clk 0:02:54]} 9. f4 {[%clk 0:02:50]}  g6 {[%clk 0:02:53]} 10. O-O {[%clk 0:02:49]}  Bg7 {[%clk 0:02:53]} 11. b4 {[%clk 0:02:47]}  a5 {[%clk 0:02:48]} 12. Be3 {[%clk 0:02:43]}  axb4 {[%clk 0:02:43]} 13. cxb4 {[%clk 0:02:43]}  O-O {[%clk 0:02:37]} 14. a4 {[%clk 0:02:43]}  f6 {[%clk 0:02:32]} 15. exf6 {[%clk 0:02:39]}  Qxf6 {[%clk 0:02:31]} 16. Ra2 {[%clk 0:02:35]}  Ba6 {[%clk 0:02:32]} 17. Bxa6 {[%clk 0:02:28]}  Rxa6 {[%clk 0:02:32]} 18. Qd3 {[%clk 0:02:27]}  Rfa8 {[%clk 0:02:28]} 19. a5 {[%clk 0:02:25]}  c5 {[%clk 0:02:25]} 20. bxc5 {[%clk 0:02:20]}  Rxa5 {[%clk 0:02:24]} 21. Rxa5 {[%clk 0:02:20]}  Rxa5 {[%clk 0:02:25]} 22. c6 {[%clk 0:02:20]}  Nf8 {[%clk 0:02:19]} 23. Rc1 {[%clk 0:02:10]}  Ra8 {[%clk 0:02:16]} 24. c7 {[%clk 0:02:07]}  Rc8 {[%clk 0:02:15]} 25. Qa6 {[%clk 0:02:07]} 1-0


[Site "https://www.chess.com"]

[Event "Titled Tuesday Blitz April 26 Late 2022"]
[White "Vlassov, Nikolai"]
[Black "Sailer, Mike"]
[WhiteFideId "4103360"]
[BlackFideId "2012901"]
[WhiteElo "2407"]
[BlackElo "2109"]
[Result "1-0"]
[Round "04"]
[TimeControl "180+1"]
[Date "2022.04.26"]
[WhiteClock "0:00:09"]
[BlackClock "0:00:01"]

1. e4 {[%clk 0:03:00]}  d5 {[%clk 0:02:59]} 2. exd5 {[%clk 0:03:00]}  Qxd5 {[%clk 0:02:58]} 3. Nc3 {[%clk 0:03:01]}  Qd6 {[%clk 0:02:58]} 4. Nf3 {[%clk 0:03:01]}  Nf6 {[%clk 0:02:58]} 5. d4 {[%clk 0:03:00]}  c6 {[%clk 0:02:59]} 6. g3 {[%clk 0:03:00]}  Bf5 {[%clk 0:02:59]} 7. Bg2 {[%clk 0:03:01]}  e6 {[%clk 0:03:00]} 8. O-O {[%clk 0:03:01]}  Be7 {[%clk 0:03:00]} 9. Bf4 {[%clk 0:03:01]}  Qd8 {[%clk 0:03:00]} 10. Re1 {[%clk 0:03:01]}  O-O {[%clk 0:03:01]} 11. Qe2 {[%clk 0:02:57]}  h6 {[%clk 0:02:59]} 12. Rad1 {[%clk 0:02:56]}  Nbd7 {[%clk 0:02:59]} 13. h3 {[%clk 0:02:53]}  Nb6 {[%clk 0:02:47]} 14. Ne5 {[%clk 0:02:47]}  Nbd5 {[%clk 0:02:46]} 15. Bc1 {[%clk 0:02:44]}  Nxc3 {[%clk 0:02:45]} 16. bxc3 {[%clk 0:02:44]}  Qa5 {[%clk 0:02:32]} 17. g4 {[%clk 0:02:32]}  Bh7 {[%clk 0:02:30]} 18. f4 {[%clk 0:02:21]}  Qxc3 {[%clk 0:02:22]} 19. g5 {[%clk 0:02:21]}  hxg5 {[%clk 0:02:18]} 20. fxg5 {[%clk 0:02:21]}  Nd5 {[%clk 0:02:04]} 21. g6 {[%clk 0:02:18]}  Bxg6 {[%clk 0:02:04]} 22. Nxg6 {[%clk 0:02:18]}  fxg6 {[%clk 0:02:03]} 23. Qxe6+ {[%clk 0:02:16]}  Kh7 {[%clk 0:01:59]} 24. Rd3 {[%clk 0:01:34]}  Qxc2 {[%clk 0:01:48]} 25. Rd2 {[%clk 0:01:13]}  Qf5 {[%clk 0:01:09]} 26. Bxd5 {[%clk 0:00:56]}  Bb4 {[%clk 0:00:54]} 27. Qxf5 {[%clk 0:00:49]}  Rxf5 {[%clk 0:00:42]} 28. Bb3 {[%clk 0:00:46]}  Raf8 {[%clk 0:00:23]} 29. Rde2 {[%clk 0:00:30]}  Bxe1 {[%clk 0:00:23]} 30. Rxe1 {[%clk 0:00:31]}  Rf3 {[%clk 0:00:09]} 31. Kg2 {[%clk 0:00:24]}  Rd3 {[%clk 0:00:09]} 32. Ba3 {[%clk 0:00:18]}  Rff3 {[%clk 0:00:07]} 33. Bd6 {[%clk 0:00:15]}  Rxd4 {[%clk 0:00:05]} 34. Kxf3 {[%clk 0:00:13]}  Rxd6 {[%clk 0:00:05]} 35. Re7 {[%clk 0:00:13]}  b5 {[%clk 0:00:02]} 36. Rxa7 {[%clk 0:00:11]}  c5 {[%clk 0:00:02]} 37. Rb7 {[%clk 0:00:10]}  c4 {[%clk 0:00:02]} 38. Bc2 {[%clk 0:00:09]}  Rd5 {[%clk 0:00:01]} 39. Be4 {[%clk 0:00:09]}  Re5 {[%clk 0:00:01]} 40. Rb6 {[%clk 0:00:09]} 1-0


[Site "https://www.chess.com"]

[Event "Titled Tuesday Blitz April 26 Late 2022"]
[White "Wieczorek, Oskar"]
[Black "Pourkashiyan, Atousa"]
[WhiteFideId "1133950"]
[BlackFideId "12502014"]
[WhiteElo "2319"]
[BlackElo "2247"]
[Result "1/2-1/2"]
[Round "04"]
[TimeControl "180+1"]
[Date "2022.04.26"]
[WhiteClock "0:00:50"]
[BlackClock "0:00:33"]

1. e4 {[%clk 0:03:00]}  e5 {[%clk 0:02:56]} 2. Nf3 {[%clk 0:02:59]}  Nf6 {[%clk 0:02:56]} 3. Nc3 {[%clk 0:03:00]}  Bb4 {[%clk 0:02:55]} 4. d3 {[%clk 0:02:55]}  d5 {[%clk 0:02:45]} 5. exd5 {[%clk 0:02:56]}  Nxd5 {[%clk 0:02:45]} 6. Bd2 {[%clk 0:02:56]}  Bxc3 {[%clk 0:02:45]} 7. bxc3 {[%clk 0:02:56]}  Nc6 {[%clk 0:02:45]} 8. g3 {[%clk 0:02:47]}  O-O {[%clk 0:02:45]} 9. Bg2 {[%clk 0:02:48]}  Nf6 {[%clk 0:02:35]} 10. Ng5 {[%clk 0:02:40]}  Bg4 {[%clk 0:02:30]} 11. Bf3 {[%clk 0:02:40]}  Qd7 {[%clk 0:02:25]} 12. Ne4 {[%clk 0:02:19]}  Bxf3 {[%clk 0:02:05]} 13. Nxf6+ {[%clk 0:02:15]}  gxf6 {[%clk 0:02:06]} 14. Qxf3 {[%clk 0:02:16]}  f5 {[%clk 0:02:07]} 15. Bh6 {[%clk 0:02:10]}  Rfe8 {[%clk 0:02:06]} 16. O-O {[%clk 0:02:05]}  Qe6 {[%clk 0:01:53]} 17. Qh5 {[%clk 0:02:01]}  Qg6 {[%clk 0:01:52]} 18. Qh4 {[%clk 0:02:02]}  Qg4 {[%clk 0:01:46]} 19. Qxg4+ {[%clk 0:01:57]}  fxg4 {[%clk 0:01:47]} 20. Rab1 {[%clk 0:01:57]}  b6 {[%clk 0:01:46]} 21. f3 {[%clk 0:01:52]}  Re6 {[%clk 0:01:38]} 22. Be3 {[%clk 0:01:51]}  gxf3 {[%clk 0:01:27]} 23. Rxf3 {[%clk 0:01:51]}  Ne7 {[%clk 0:01:27]} 24. Rbf1 {[%clk 0:01:44]}  f5 {[%clk 0:01:10]} 25. Bg5 {[%clk 0:01:42]}  e4 {[%clk 0:01:04]} 26. dxe4 {[%clk 0:01:43]}  fxe4 {[%clk 0:01:04]} 27. Rf7 {[%clk 0:01:43]}  Re8 {[%clk 0:00:59]} 28. Be3 {[%clk 0:01:18]}  c5 {[%clk 0:00:49]} 29. c4 {[%clk 0:01:18]}  Nc6 {[%clk 0:00:41]} 30. Rc7 {[%clk 0:01:01]}  R8e7 {[%clk 0:00:34]} 31. Rc8+ {[%clk 0:01:01]}  Re8 {[%clk 0:00:34]} 32. Rc7 {[%clk 0:01:01]}  R8e7 {[%clk 0:00:35]} 33. Rc8+ {[%clk 0:00:51]}  Re8 {[%clk 0:00:33]} 34. Rc7 {[%clk 0:00:50]} 1/2-1/2


[Site "https://www.chess.com"]

[Event "Titled Tuesday Blitz April 26 Late 2022"]
[White "Xiong, Jeffery"]
[Black "Piesik, Piotr"]
[WhiteFideId "2047640"]
[BlackFideId "1136194"]
[WhiteElo "2727"]
[BlackElo "2190"]
[Result "1-0"]
[Round "04"]
[TimeControl "180+1"]
[Date "2022.04.26"]
[WhiteClock "0:00:10"]
[BlackClock "0:00:01"]

1. e4 {[%clk 0:03:00]}  g6 {[%clk 0:02:56]} 2. d4 {[%clk 0:03:00]}  Bg7 {[%clk 0:02:57]} 3. Nf3 {[%clk 0:03:00]}  c6 {[%clk 0:02:57]} 4. c4 {[%clk 0:03:00]}  d5 {[%clk 0:02:57]} 5. cxd5 {[%clk 0:03:01]}  cxd5 {[%clk 0:02:58]} 6. e5 {[%clk 0:03:02]}  Nc6 {[%clk 0:02:58]} 7. Bb5 {[%clk 0:03:02]}  Bg4 {[%clk 0:02:58]} 8. Bxc6+ {[%clk 0:03:02]}  bxc6 {[%clk 0:02:58]} 9. Nbd2 {[%clk 0:03:02]}  c5 {[%clk 0:02:46]} 10. O-O {[%clk 0:02:56]}  cxd4 {[%clk 0:02:42]} 11. Qa4+ {[%clk 0:02:56]}  Qd7 {[%clk 0:02:40]} 12. Qxd4 {[%clk 0:02:57]}  Bxf3 {[%clk 0:02:37]} 13. Nxf3 {[%clk 0:02:56]}  e6 {[%clk 0:02:37]} 14. b3 {[%clk 0:02:37]}  Ne7 {[%clk 0:02:36]} 15. Ba3 {[%clk 0:02:37]}  O-O {[%clk 0:02:34]} 16. Qh4 {[%clk 0:02:35]}  Rfe8 {[%clk 0:02:15]} 17. Rfe1 {[%clk 0:02:29]}  Rac8 {[%clk 0:02:08]} 18. Nd4 {[%clk 0:02:23]}  Nc6 {[%clk 0:01:56]} 19. Nxc6 {[%clk 0:02:23]}  Rxc6 {[%clk 0:01:56]} 20. Bd6 {[%clk 0:02:24]}  Rxd6 {[%clk 0:01:53]} 21. exd6 {[%clk 0:02:25]}  Bxa1 {[%clk 0:01:53]} 22. Rxa1 {[%clk 0:02:25]}  Qxd6 {[%clk 0:01:54]} 23. Rc1 {[%clk 0:02:26]}  d4 {[%clk 0:01:50]} 24. Qe4 {[%clk 0:02:22]}  Rd8 {[%clk 0:01:47]} 25. Qd3 {[%clk 0:01:29]}  e5 {[%clk 0:01:43]} 26. f3 {[%clk 0:01:29]}  Qd5 {[%clk 0:01:39]} 27. Rc7 {[%clk 0:01:28]}  Rd7 {[%clk 0:01:37]} 28. Rc8+ {[%clk 0:01:24]}  Kg7 {[%clk 0:01:37]} 29. g4 {[%clk 0:01:23]}  Re7 {[%clk 0:01:27]} 30. Rc4 {[%clk 0:01:16]}  Qa5 {[%clk 0:01:25]} 31. Rc2 {[%clk 0:01:11]}  Qe1+ {[%clk 0:01:24]} 32. Kg2 {[%clk 0:01:11]}  Qh4 {[%clk 0:01:00]} 33. h3 {[%clk 0:01:09]}  Qg5 {[%clk 0:00:54]} 34. Qe4 {[%clk 0:01:08]}  f5 {[%clk 0:00:48]} 35. Qd5 {[%clk 0:01:04]}  fxg4 {[%clk 0:00:47]} 36. hxg4 {[%clk 0:01:04]}  Qf6 {[%clk 0:00:41]} 37. Rc5 {[%clk 0:01:01]}  Qf4 {[%clk 0:00:32]} 38. Qd6 {[%clk 0:00:58]}  Qf6 {[%clk 0:00:26]} 39. Qd5 {[%clk 0:00:58]}  Qe6 {[%clk 0:00:26]} 40. Qe4 {[%clk 0:00:55]}  Qf6 {[%clk 0:00:25]} 41. a4 {[%clk 0:00:42]}  Qg5 {[%clk 0:00:20]} 42. Qxd4 {[%clk 0:00:37]}  h5 {[%clk 0:00:16]} 43. Qe4 {[%clk 0:00:30]}  hxg4 {[%clk 0:00:16]} 44. fxg4 {[%clk 0:00:27]}  Qd2+ {[%clk 0:00:16]} 45. Kg3 {[%clk 0:00:27]}  Qd6 {[%clk 0:00:08]} 46. b4 {[%clk 0:00:23]}  Qe6 {[%clk 0:00:06]} 47. Rc6 {[%clk 0:00:20]}  Qb3+ {[%clk 0:00:05]} 48. Kh4 {[%clk 0:00:20]}  Re6 {[%clk 0:00:02]} 49. Rc7+ {[%clk 0:00:19]}  Kf8 {[%clk 0:00:01]} 50. Qa8+ {[%clk 0:00:10]}  Re8 {[%clk 0:00:01]} 51. Qxa7 {[%clk 0:00:11]}  Qe6 {[%clk 0:00:01]} 52. Qc5+ {[%clk 0:00:10]} 1-0


[Site "https://www.chess.com"]

[Event "Titled Tuesday Blitz April 26 Late 2022"]
[White "Yedidia, Daniel"]
[Black "Rasulov, Vugar"]
[WhiteFideId "30905907"]
[BlackFideId "13402390"]
[WhiteElo "2602"]
[BlackElo "2560"]
[Result "0-1"]
[Round "04"]
[TimeControl "180+1"]
[Date "2022.04.26"]
[WhiteClock "0:01:03"]
[BlackClock "0:01:29"]

1. d4 {[%clk 0:03:00]}  Nf6 {[%clk 0:02:59]} 2. c4 {[%clk 0:03:01]}  e6 {[%clk 0:02:59]} 3. Nc3 {[%clk 0:03:01]}  Bb4 {[%clk 0:03:00]} 4. e3 {[%clk 0:03:01]}  O-O {[%clk 0:03:00]} 5. Bd3 {[%clk 0:03:01]}  d5 {[%clk 0:03:00]} 6. Nf3 {[%clk 0:03:01]}  c5 {[%clk 0:03:00]} 7. O-O {[%clk 0:03:01]}  Bxc3 {[%clk 0:02:59]} 8. bxc3 {[%clk 0:03:01]}  dxc4 {[%clk 0:03:00]} 9. Bxc4 {[%clk 0:03:02]}  Qc7 {[%clk 0:03:00]} 10. Be2 {[%clk 0:03:00]}  Nbd7 {[%clk 0:02:59]} 11. h3 {[%clk 0:02:59]}  b6 {[%clk 0:02:59]} 12. Nd2 {[%clk 0:02:53]}  Bb7 {[%clk 0:02:59]} 13. Bf3 {[%clk 0:02:53]}  e5 {[%clk 0:02:57]} 14. Nb3 {[%clk 0:02:43]}  Rfd8 {[%clk 0:02:54]} 15. Qe2 {[%clk 0:02:38]}  e4 {[%clk 0:02:45]} 16. Bg4 {[%clk 0:02:37]}  Nf8 {[%clk 0:02:45]} 17. Ba3 {[%clk 0:02:32]}  g6 {[%clk 0:02:35]} 18. h4 {[%clk 0:02:29]}  Ba6 {[%clk 0:02:13]} 19. Qd1 {[%clk 0:02:18]}  Bxf1 {[%clk 0:02:12]} 20. Kxf1 {[%clk 0:02:19]}  Qh2 {[%clk 0:02:10]} 21. Bh3 {[%clk 0:02:20]}  Ne6 {[%clk 0:02:04]} 22. Ke2 {[%clk 0:02:18]}  Rac8 {[%clk 0:01:57]} 23. Nd2 {[%clk 0:02:09]}  Nd5 {[%clk 0:01:48]} 24. Nxe4 {[%clk 0:01:53]}  f5 {[%clk 0:01:48]} 25. c4 {[%clk 0:01:50]}  Ndf4+ {[%clk 0:01:44]} 26. exf4 {[%clk 0:01:47]}  Nxf4+ {[%clk 0:01:44]} 27. Ke3 {[%clk 0:01:34]}  Nxh3 {[%clk 0:01:45]} 28. gxh3 {[%clk 0:01:23]}  Re8 {[%clk 0:01:44]} 29. f3 {[%clk 0:01:22]}  fxe4 {[%clk 0:01:44]} 30. fxe4 {[%clk 0:01:19]}  cxd4+ {[%clk 0:01:39]} 31. Qxd4 {[%clk 0:01:10]}  Qg3+ {[%clk 0:01:38]} 32. Ke2 {[%clk 0:01:10]}  Rcd8 {[%clk 0:01:35]} 33. Qe3 {[%clk 0:01:08]}  Qh2+ {[%clk 0:01:33]} 34. Kf1 {[%clk 0:01:03]}  Rf8+ {[%clk 0:01:31]} 35. Ke1 {[%clk 0:01:04]}  Qh1+ {[%clk 0:01:30]} 36. Ke2 {[%clk 0:01:03]}  Qxa1 {[%clk 0:01:29]} 0-1


[Site "https://www.chess.com"]

[Event "Titled Tuesday Blitz April 26 Late 2022"]
[White "Yoo, Christopher Woojin"]
[Black "Taichman, Ori"]
[WhiteFideId "30909694"]
[BlackFideId "2804069"]
[WhiteElo "2105"]
[BlackElo "2227"]
[Result "1-0"]
[Round "04"]
[TimeControl "180+1"]
[Date "2022.04.26"]
[WhiteClock "0:00:29"]
[BlackClock "0:00:15"]

1. e4 {[%clk 0:03:00]}  c5 {[%clk 0:02:57]} 2. Nf3 {[%clk 0:03:00]}  Nc6 {[%clk 0:02:57]} 3. b4 {[%clk 0:03:00]}  cxb4 {[%clk 0:02:56]} 4. d4 {[%clk 0:02:59]}  d5 {[%clk 0:02:56]} 5. exd5 {[%clk 0:03:00]}  Qxd5 {[%clk 0:02:56]} 6. c4 {[%clk 0:03:01]}  Qd6 {[%clk 0:02:44]} 7. Bb2 {[%clk 0:02:34]}  e6 {[%clk 0:02:35]} 8. Nbd2 {[%clk 0:02:19]}  Nf6 {[%clk 0:02:34]} 9. g3 {[%clk 0:02:15]}  Be7 {[%clk 0:02:30]} 10. Bg2 {[%clk 0:02:15]}  O-O {[%clk 0:02:30]} 11. O-O {[%clk 0:02:14]}  a5 {[%clk 0:02:29]} 12. a3 {[%clk 0:01:46]}  Ra6 {[%clk 0:02:28]} 13. c5 {[%clk 0:01:39]}  Qc7 {[%clk 0:02:25]} 14. Nc4 {[%clk 0:01:39]}  Nd5 {[%clk 0:02:24]} 15. Rc1 {[%clk 0:01:29]}  Rd8 {[%clk 0:02:15]} 16. Qe2 {[%clk 0:01:29]}  Bf6 {[%clk 0:02:14]} 17. Rfd1 {[%clk 0:01:28]}  Bd7 {[%clk 0:02:04]} 18. h4 {[%clk 0:01:19]}  Na7 {[%clk 0:02:02]} 19. Nd6 {[%clk 0:01:12]}  Ba4 {[%clk 0:02:00]} 20. Rd2 {[%clk 0:01:11]}  Nc3 {[%clk 0:01:35]} 21. Bxc3 {[%clk 0:00:59]}  bxc3 {[%clk 0:01:36]} 22. Rd3 {[%clk 0:00:58]}  c2 {[%clk 0:01:10]} 23. Ne5 {[%clk 0:00:45]}  Nb5 {[%clk 0:00:55]} 24. Nexf7 {[%clk 0:00:40]}  Nxd4 {[%clk 0:00:50]} 25. Rxd4 {[%clk 0:00:37]}  Bxd4 {[%clk 0:00:51]} 26. Nxd8 {[%clk 0:00:37]}  Rxd6 {[%clk 0:00:40]} 27. cxd6 {[%clk 0:00:36]}  Qxd6 {[%clk 0:00:28]} 28. Nxe6 {[%clk 0:00:31]}  Bb2 {[%clk 0:00:26]} 29. Rxc2 {[%clk 0:00:30]}  Bxc2 {[%clk 0:00:17]} 30. Qxc2 {[%clk 0:00:31]}  Bxa3 {[%clk 0:00:16]} 31. Ng5 {[%clk 0:00:31]}  h6 {[%clk 0:00:13]} 32. Qh7+ {[%clk 0:00:27]}  Kf8 {[%clk 0:00:13]} 33. Qh8+ {[%clk 0:00:28]}  Ke7 {[%clk 0:00:14]} 34. Qxg7+ {[%clk 0:00:28]}  Ke8 {[%clk 0:00:14]} 35. Qf7+ {[%clk 0:00:28]}  Kd8 {[%clk 0:00:14]} 36. Ne6+ {[%clk 0:00:29]}  Kc8 {[%clk 0:00:15]} 37. Qxb7# {[%clk 0:00:29]} 1-0


[Site "https://www.chess.com"]

[Event "Titled Tuesday Blitz April 26 Late 2022"]
[White "Zhigalko, Sergei"]
[Black "Janik, Igor"]
[WhiteFideId "13502956"]
[BlackFideId "1159259"]
[WhiteElo "2662"]
[BlackElo "2437"]
[Result "1-0"]
[Round "04"]
[TimeControl "180+1"]
[Date "2022.04.26"]
[WhiteClock "0:01:07"]
[BlackClock "0:00:17"]

1. e4 {[%clk 0:03:00]}  c6 {[%clk 0:02:44]} 2. d4 {[%clk 0:03:01]}  d5 {[%clk 0:02:44]} 3. e5 {[%clk 0:03:01]}  c5 {[%clk 0:02:42]} 4. Nf3 {[%clk 0:03:02]}  Bg4 {[%clk 0:02:41]} 5. dxc5 {[%clk 0:03:02]}  e6 {[%clk 0:02:41]} 6. a3 {[%clk 0:03:01]}  Bxc5 {[%clk 0:02:38]} 7. b4 {[%clk 0:02:59]}  Bb6 {[%clk 0:02:34]} 8. Bb2 {[%clk 0:03:00]}  Ne7 {[%clk 0:02:33]} 9. Nbd2 {[%clk 0:02:57]}  Ng6 {[%clk 0:02:26]} 10. h3 {[%clk 0:02:54]}  Bxf3 {[%clk 0:02:26]} 11. Nxf3 {[%clk 0:02:55]}  Nc6 {[%clk 0:02:22]} 12. Bd3 {[%clk 0:02:53]}  Nh4 {[%clk 0:01:59]} 13. O-O {[%clk 0:02:50]}  Nxf3+ {[%clk 0:01:58]} 14. Qxf3 {[%clk 0:02:51]}  Qh4 {[%clk 0:01:58]} 15. Rae1 {[%clk 0:02:39]}  O-O {[%clk 0:01:50]} 16. Kh1 {[%clk 0:02:36]}  g6 {[%clk 0:01:42]} 17. Kh2 {[%clk 0:02:10]}  Bd4 {[%clk 0:00:59]} 18. g3 {[%clk 0:02:08]}  Qe7 {[%clk 0:00:59]} 19. Bxd4 {[%clk 0:02:05]}  Nxd4 {[%clk 0:00:59]} 20. Qe3 {[%clk 0:02:05]}  Nc6 {[%clk 0:00:59]} 21. f4 {[%clk 0:01:59]}  Kg7 {[%clk 0:00:51]} 22. g4 {[%clk 0:01:53]}  Rfe8 {[%clk 0:00:47]} 23. b5 {[%clk 0:01:44]}  Nd8 {[%clk 0:00:46]} 24. f5 {[%clk 0:01:44]}  Qxa3 {[%clk 0:00:32]} 25. h4 {[%clk 0:01:23]}  Rc8 {[%clk 0:00:26]} 26. h5 {[%clk 0:01:22]}  Qc5 {[%clk 0:00:20]} 27. Qg5 {[%clk 0:01:16]}  Kh8 {[%clk 0:00:18]} 28. fxg6 {[%clk 0:01:10]}  fxg6 {[%clk 0:00:17]} 29. Qf6+ {[%clk 0:01:06]}  Kg8 {[%clk 0:00:17]} 30. hxg6 {[%clk 0:01:07]} 1-0


[Site "https://www.chess.com"]

[Event "Titled Tuesday Blitz April 26 Late 2022"]
[White "Zhurbinsky, David"]
[Black "Xu, Yi"]
[WhiteFideId "2072904"]
[BlackFideId "8605564"]
[WhiteElo "2561"]
[BlackElo "2471"]
[Result "0-1"]
[Round "04"]
[TimeControl "180+1"]
[Date "2022.04.26"]
[WhiteClock "0:00:08"]
[BlackClock "0:00:17"]

1. e4 {[%clk 0:03:00]}  c5 {[%clk 0:03:00]} 2. Nf3 {[%clk 0:03:01]}  d6 {[%clk 0:03:00]} 3. d4 {[%clk 0:03:01]}  cxd4 {[%clk 0:03:01]} 4. Nxd4 {[%clk 0:03:01]}  Nf6 {[%clk 0:03:01]} 5. f3 {[%clk 0:03:02]}  e5 {[%clk 0:02:58]} 6. Nb3 {[%clk 0:03:03]}  d5 {[%clk 0:02:55]} 7. Bg5 {[%clk 0:03:03]}  d4 {[%clk 0:02:36]} 8. c3 {[%clk 0:03:04]}  Nc6 {[%clk 0:02:35]} 9. Bb5 {[%clk 0:03:03]}  h6 {[%clk 0:02:30]} 10. Bxf6 {[%clk 0:02:45]}  Qxf6 {[%clk 0:02:30]} 11. cxd4 {[%clk 0:02:43]}  exd4 {[%clk 0:02:27]} 12. Qxd4 {[%clk 0:02:32]}  Qg5 {[%clk 0:02:01]} 13. Bxc6+ {[%clk 0:02:08]}  bxc6 {[%clk 0:02:00]} 14. Nc3 {[%clk 0:01:48]}  Be7 {[%clk 0:01:54]} 15. Qd2 {[%clk 0:01:38]}  Qh4+ {[%clk 0:01:49]} 16. g3 {[%clk 0:01:36]}  Qh5 {[%clk 0:01:47]} 17. Qe2 {[%clk 0:01:21]}  O-O {[%clk 0:01:39]} 18. O-O {[%clk 0:01:11]}  a5 {[%clk 0:01:38]} 19. Kh1 {[%clk 0:00:58]}  Ba6 {[%clk 0:01:37]} 20. Qf2 {[%clk 0:00:51]}  Bxf1 {[%clk 0:01:37]} 21. Rxf1 {[%clk 0:00:52]}  a4 {[%clk 0:01:33]} 22. Nd2 {[%clk 0:00:46]}  Bf6 {[%clk 0:01:27]} 23. Qe3 {[%clk 0:00:40]}  a3 {[%clk 0:01:17]} 24. b3 {[%clk 0:00:35]}  Qa5 {[%clk 0:01:14]} 25. Na4 {[%clk 0:00:32]}  Rfd8 {[%clk 0:01:12]} 26. Nc4 {[%clk 0:00:32]}  Qb4 {[%clk 0:01:12]} 27. e5 {[%clk 0:00:25]}  Be7 {[%clk 0:01:06]} 28. e6 {[%clk 0:00:22]}  Rxa4 {[%clk 0:00:48]} 29. exf7+ {[%clk 0:00:21]}  Kf8 {[%clk 0:00:49]} 30. Ne5 {[%clk 0:00:07]}  Ra6 {[%clk 0:00:42]} 31. Ng6+ {[%clk 0:00:03]}  Kxf7 {[%clk 0:00:42]} 32. Ne5+ {[%clk 0:00:03]}  Kg8 {[%clk 0:00:40]} 33. Qe2 {[%clk 0:00:04]}  Qb5 {[%clk 0:00:37]} 34. Qe1 {[%clk 0:00:02]}  Bf6 {[%clk 0:00:36]} 35. Nc4 {[%clk 0:00:02]}  Raa8 {[%clk 0:00:33]} 36. Qe6+ {[%clk 0:00:02]}  Kh8 {[%clk 0:00:33]} 37. Qf7 {[%clk 0:00:02]}  Qd5 {[%clk 0:00:32]} 38. Qg6 {[%clk 0:00:02]}  Rf8 {[%clk 0:00:31]} 39. Rg1 {[%clk 0:00:02]}  Qxf3+ {[%clk 0:00:31]} 40. Rg2 {[%clk 0:00:03]}  Rad8 {[%clk 0:00:31]} 41. h4 {[%clk 0:00:03]}  Rd1+ {[%clk 0:00:31]} 42. Kh2 {[%clk 0:00:04]}  Qf1 {[%clk 0:00:31]} 43. Kh3 {[%clk 0:00:04]}  Re1 {[%clk 0:00:22]} 44. Nd6 {[%clk 0:00:03]}  Re2 {[%clk 0:00:20]} 45. Nf5 {[%clk 0:00:01]}  Qxg2+ {[%clk 0:00:19]} 46. Kg4 {[%clk 0:00:02]}  Re4+ {[%clk 0:00:20]} 47. Kh5 {[%clk 0:00:03]}  Qf3+ {[%clk 0:00:20]} 48. g4 {[%clk 0:00:04]}  Qxg4+ {[%clk 0:00:19]} 49. Qxg4 {[%clk 0:00:05]}  Rxg4 {[%clk 0:00:19]} 50. Nxg7 {[%clk 0:00:05]}  Bxg7 {[%clk 0:00:19]} 51. b4 {[%clk 0:00:06]}  Rxb4 {[%clk 0:00:18]} 52. Kg6 {[%clk 0:00:07]}  Rg4+ {[%clk 0:00:18]} 53. Kh5 {[%clk 0:00:08]}  Rxh4+ {[%clk 0:00:17]} 54. Kg6 {[%clk 0:00:08]}  Rf6# {[%clk 0:00:17]} 0-1


[Site "https://www.chess.com"]

[Event "Titled Tuesday Blitz April 26 Late 2022"]
[White "Zlatin, Alexander"]
[Black "Peterson, Eric"]
[WhiteFideId "2810549"]
[BlackFideId "14908395"]
[WhiteElo "2228"]
[BlackElo "2195"]
[Result "1-0"]
[Round "04"]
[TimeControl "180+1"]
[Date "2022.04.26"]
[WhiteClock "0:00:55"]
[BlackClock "0:00:43"]

1. d4 {[%clk 0:02:37]}  e6 {[%clk 0:02:59]} 2. Nc3 {[%clk 0:02:38]}  d5 {[%clk 0:02:59]} 3. Bf4 {[%clk 0:02:38]}  Bd6 {[%clk 0:02:59]} 4. e3 {[%clk 0:02:39]}  Bxf4 {[%clk 0:02:58]} 5. exf4 {[%clk 0:02:40]}  Qd6 {[%clk 0:02:58]} 6. Qd2 {[%clk 0:02:37]}  Nf6 {[%clk 0:02:59]} 7. Nf3 {[%clk 0:02:37]}  O-O {[%clk 0:02:58]} 8. Bd3 {[%clk 0:02:29]}  c5 {[%clk 0:02:59]} 9. dxc5 {[%clk 0:02:30]}  Qxc5 {[%clk 0:02:58]} 10. Qe3 {[%clk 0:02:30]}  Qb4 {[%clk 0:02:46]} 11. O-O {[%clk 0:02:15]}  Nc6 {[%clk 0:02:45]} 12. a3 {[%clk 0:02:11]}  Qd6 {[%clk 0:02:32]} 13. Nb5 {[%clk 0:01:57]}  Qe7 {[%clk 0:02:28]} 14. Nbd4 {[%clk 0:01:48]}  g6 {[%clk 0:02:25]} 15. Rfe1 {[%clk 0:01:47]}  Re8 {[%clk 0:02:24]} 16. Ne5 {[%clk 0:01:41]}  Nxd4 {[%clk 0:02:19]} 17. Qxd4 {[%clk 0:01:41]}  Bd7 {[%clk 0:02:18]} 18. g4 {[%clk 0:01:35]}  Rad8 {[%clk 0:02:09]} 19. g5 {[%clk 0:01:35]}  Nh5 {[%clk 0:02:08]} 20. Ng4 {[%clk 0:01:33]}  f6 {[%clk 0:01:03]} 21. gxf6 {[%clk 0:01:28]}  Qd6 {[%clk 0:01:00]} 22. Nh6+ {[%clk 0:01:10]}  Kf8 {[%clk 0:00:59]} 23. f7 {[%clk 0:01:09]}  Qxf4 {[%clk 0:00:45]} 24. fxe8=Q+ {[%clk 0:01:02]}  Rxe8 {[%clk 0:00:44]} 25. Qxf4+ {[%clk 0:00:55]}  Nxf4 {[%clk 0:00:43]} 26. Ng4 {[%clk 0:00:55]} 1-0


[Site "https://www.chess.com"]